Cogmind - Beta 10.2 @@@ ROGUE MODE // 2020.12.04 @ 23:54:08 // Halloween2020/ForbiddenLore Player: MTF Result: Destroyed by D-53 Grenadier with Mini Grenade Launcher Performance ------------- Evolutions (0) 0 Regions Visited (2) 400 Robots Destroyed (17) 85 Value Destroyed (503) 503 Prototype IDs (0) 0 Alien Tech Used (0) 0 Bonus (21) 21 TOTAL SCORE: 1009 Bonus ------- Follower Combat Kills 21 Cogmind --------- Core Integrity 0/250 Matter 213/300 Energy 35/100 System Corruption 0% Temperature Cool (0) Movement Treading (160) Location -10/Mines Parts ------- > --- POWER (1) -------- (None) > --- PROPULSION (2) --- Light Treads Light Treads > --- UTILITY (2) ------ Medium Storage Unit Large Storage Unit > --- WEAPON (2) ------- Light Assault Rifle Light Assault Rifle > --- INVENTORY (14) --- Light Treads High-capacity Matter Pod (200) Light EM Pulse Cannon Light EM Pulse Cannon Light EM Pulse Cannon Light EM Pulse Cannon Light Assault Rifle Mini Grenade Launcher Mini Grenade Launcher Mining Claw Peak State ------------ > --- POWER ------------ Ion Engine > --- PROPULSION ------- Light Treads Light Treads > --- UTILITY ---------- Small Storage Unit Large Storage Unit > --- WEAPON ----------- Light Assault Rifle Mini Grenade Launcher > --- INVENTORY -------- Light Treads Light Treads Light Treads Light EM Pulse Cannon Light EM Pulse Cannon Light EM Pulse Cannon Light EM Pulse Cannon Light Assault Rifle Light Assault Rifle Light Assault Rifle Mini Grenade Launcher Mining Claw [Rating: 9] Favorites ----------- Power Ion Engine Engine Ion Engine Propulsion Light Treads Treads Light Treads Leg Aluminum Leg Utility Small Storage Unit Storage Small Storage Unit Weapon Light Assault Rifle Energy Gun Medium Laser Energy Cannon Light EM Pulse Cannon Ballistic Gun Light Assault Rifle Launcher Mini Grenade Launcher Slashing Weapon Mining Claw Build | -11 -10 -10 ------- Run | Scr Mat Min Slots Evolved . | . . . Power . | . . . Propulsion . | . . . Utility . | . . . Weapon . | . . . Parts Attached 23 | 2 10 11 Power . | . . . Engine . | . . . Core . | . . . Reactor . | . . . Propulsion 5 | 2 1 2 Treads 5 | 2 1 2 Leg . | . . . Wheel . | . . . Hover . | . . . Flight . | . . . Utility 2 | . 1 1 Device . | . . . Storage 2 | . 1 1 Processor . | . . . Hackware . | . . . Protection . | . . . Artifact . | . . . Weapon 16 | . 8 8 Energy Gun 1 | . 1 . Energy Cannon 2 | . . 2 Ballistic Gun 8 | . 5 3 Ballistic Cannon . | . . . Launcher 3 | . 1 2 Special Weapon . | . . . Impact Weapon . | . . . Slashing Weapon 2 | . 1 1 Piercing Weapon . | . . . Special Melee Weapon . | . . . Unidentified Prototypes . | . . . Parts Lost 6 | . 2 4 Power 1 | . . 1 Propulsion 2 | . . 2 Utility . | . . . Weapon 3 | . 2 1 Highest Loss Streak 3 | . 1 3 Average Slot Usage (%) 87 | . 86 87 Engine 10 | . 14 2 Treads 27 | . 27 28 Storage 20 | . 16 28 Energy Gun 2 | . 3 . Energy Cannon 3 | . . 10 Ballistic Gun 21 | . 24 15 Naked Turns . | . . . Heaviest Build 30 | 12 28 30 Greatest Support 40 | 40 40 40 Greatest Overweight (x) 1 | . . 1 Average Overweight (x) . | . . . Largest Inventory Capacity 14 | 6 12 14 Average Capacity 8 | 6 6 12 Most Carried 13 | 6 12 13 Average Carried 8 | 6 6 12 Final Capacity 14 | 6 12 14 Final Carried 12 | 6 12 10 Class Distribution -------------------- 100% | Mutant Dominant Class ---------------- Mutant | -10/Materials Mutant | -10/Mines Resources | -11 -10 -10 ----------- Run | Scr Mat Min Matter Collected 557 | 224 239 94 Remotely . | . . . Salvage Created 584 | 58 414 112 Parts 32 | 2 28 2 Haulers Intercepted 1 | . 1 . Recyclers Shooed 1 | . . 1 Parts Field Recycled . | . . . Retrieved Matter . | . . . Parts Self-Destructed . | . . . Prevented . | . . . Kills | -11 -10 -10 ------- Run | Scr Mat Min Combat Hostiles Destroyed 17 | . 10 7 Guns 12 | . 10 2 AOE 5 | . . 5 Classes Destroyed 7 | 1 5 1 Hauler 1 | . 1 . Recycler 1 | 1 . . Operator 1 | . 1 . Watcher 1 | . 1 . Swarmer 2 | . 2 . Grunt 11 | . 8 3 Assembled 4 | . . 4 Best Kill Streak 4 | 1 2 4 Combat Bots Only 4 | . 2 4 Max Kills in Single Turn 2 | 1 2 2 Gunslinging 1 | . 1 . Exploded 2 | . . 2 Melee . | . . . Uniques/NPCs Destroyed . | . . . Combat | -11 -10 -10 -------- Run | Scr Mat Min Damage Taken 1253 | . 403 850 Core 277 | . 69 208 Absorbed by Shields . | . . . Core Remaining (%) 100 | 100 . . Volleys Fired 65 | 4 44 17 Largest 2 | 2 2 2 Hottest 76 | 70 70 76 Shots Fired 118 | 8 85 25 Gun 104 | 8 85 11 Cannon 7 | . . 7 Launcher 7 | . . 7 Special . | . . . Kinetic 91 | 4 76 11 Thermal 13 | 4 9 . Explosive 7 | . . 7 Electromagnetic 7 | . . 7 Robot Hit Streak 10 | 2 10 6 Robot Miss Streak 4 | 2 4 2 Penetration Max . | . . . Secondary Targets 1 | . 1 . Max Gunslinging Chain 1 | . 1 . Shots Hit Robots 77 | 4 58 15 Core Hits 46 | 2 25 19 Critical Hits 2 | . 2 . Critical Kills . | . . . Critical Parts Destroyed 2 | . 2 . Melee Attacks 3 | . 1 2 Impact . | . . . Slashing 3 | . 1 2 Piercing . | . . . Sneak Attacks . | . . . Combat Hostiles . | . . . Follow-up Attacks . | . . . Damage Inflicted 1397 | 34 597 766 Guns 679 | 34 590 55 Cannons 94 | . . 94 Explosions 609 | . . 609 Melee . | . . . Ramming 15 | . 7 8 Kinetic 605 | 22 528 55 Thermal 74 | 12 62 . Explosive 609 | . . 609 Electromagnetic 94 | . . 94 Impact . | . . . Slashing . | . . . Piercing . | . . . Highest Corruption . | . . . Average Corruption . | . . . Corruption Purged . | . . . Overload Shots . | . . . Overflow Damage 47 | . . 47 Projectiles . | . . . Explosions 47 | . . 47 Melee . | . . . Knockbacks . | . . . Impact . | . . . Kinetic . | . . . Secondary . | . . . Self-Inflicted Damage 103 | . . 103 Shots 4 | . . 4 Rammed 5 | . 4 1 Targets Rammed 5 | . 4 1 Kicked . | . . . Crushed . | . . . Highest Temperature 118 | 60 118 78 Average Temperature 30 | 30 33 25 Received Heat Transfer 279 | . 204 75 Siege Activations . | . . . Robots Corrupted . | . . . Combat Hostiles . | . . . Parts Fried . | . . . Impact Corruptions . | . . . Robots Melted . | . . . Combat Hostiles . | . . . Parts Melted . | . . . Heat Transferred 222 | 37 185 . Parts Sabotaged . | . . . Parts Stolen . | . . . Parts Stripped . | . . . Power Chain Reactions . | . . . Missiles Intercepted . | . . . Alert | -11 -10 -10 ------- Run | Scr Mat Min Peak Influence 208 | 5 189 208 Initial 15 | . 3 15 Average 97 | 3 89 118 Maximum Alert Level 1 | . . 1 Low Security (%) 87 | 100 100 64 Level 1 12 | . . 35 Level 2 . | . . . Level 3 . | . . . Level 4 . | . . . Level 5 . | . . . High Security . | . . . Max Security . | . . . Squads Dispatched 3 | . 3 . Investigation 2 | . 2 . Extermination . | . . . Reinforcement 1 | . 1 . Assault . | . . . Garrison . | . . . Intercept . | . . . Construction Impeded . | . . . Haulers Reinforced . | . . . Stealth | -11 -10 -10 --------- Run | Scr Mat Min Distress Signals . | . . . Communications Jammed . | . . . Distress Signals . | . . . Times Spotted 31 | . 15 16 Peak Tracking Total 12 | . 3 12 Tactical Retreats 3 | . 1 2 Traps | -11 -10 -10 ------- Run | Scr Mat Min Traps Triggered . | . . . Indirectly . | . . . Trap Hack Attempts . | . . . Triggered . | . . . Disarmed . | . . . Reprogrammed . | . . . Reused . | . . . Traps Extracted . | . . . Installed . | . . . Triggered . | . . . Machines | -11 -10 -10 ---------- Run | Scr Mat Min Machines Disabled 3 | . 1 2 Max in Single Turn 1 | . 1 1 Machines Sabotaged . | . . . Garrisons Compromised . | . . . Overloaded Fab Kills . | . . . Fab Network Shutdowns . | . . . Hacking | -11 -10 -10 --------- Run | Scr Mat Min Machines Accessed 6 | . 6 . Terminals 3 | . 3 . Fabricators . | . . . Repair Stations 1 | . 1 . Recycling Units 2 | . 2 . Scanalyzers . | . . . Garrison Access . | . . . Total Hacks 13 | . 13 . Successful 9 | . 9 . Failed 4 | . 4 . Catastrophic . | . . . Database Lockouts . | . . . Manual 8 | . 8 . Terminals 9 | . 9 . Fabricators . | . . . Repair Stations 2 | . 2 . Recycling Units 2 | . 2 . Scanalyzers . | . . . Garrison Access . | . . . Terminal Hacks 2 | . 2 . Zone Layout 2 | . 2 . Fabricator Hacks . | . . . Repair Station Hacks 2 | . 2 . Scan Component 1 | . 1 . Repair 1 | . 1 . Recycling Unit Hacks . | . . . Scanalyzer . | . . . Garrison Access Hacks . | . . . Unauthorized Hacks 5 | . 5 . Terminals 3 | . 3 . Track 3 | . 3 . Fabricators . | . . . Repair Stations . | . . . Recycling Units 2 | . 2 . Tunnel 2 | . 2 . Scanalyzers . | . . . Garrison Access . | . . . Data Cores Recovered . | . . . Used . | . . . Hacking Detections 2 | . 2 . Full Trace Events . | . . . Feedback Events . | . . . Feedback Blocked . | . . . Robot Schematics Acquired . | . . . Robots Built . | . . . Matter . | . . . Time . | . . . Total Robot Build Rating . | . . . Part Schematics Acquired . | . . . Parts Built . | . . . Matter . | . . . Time . | . . . Total Part Build Rating . | . . . Parts Repaired 1 | . 1 . Time 26 | . 26 . Parts Recycled . | . . . Recycled Matter . | . . . Retrieved Matter . | . . . Retrieved Components . | . . . Parts Scanalyzed . | . . . Part Schematics Acquired . | . . . Parts Damaged . | . . . Bothacking | -11 -10 -10 ------------ Run | Scr Mat Min Used RIF Installer . | . . . Robots Hacked . | . . . Non-combat . | . . . Combat . | . . . Robot Hacks Applied . | . . . Relay Couplers Released . | . . . Robots Rewired . | . . . Allies Hacked . | . . . Hacks Repelled . | . . . Allies | -11 -10 -10 -------- Run | Scr Mat Min Total Allies 2 | . . 2 Largest Group 2 | . . 2 Highest-Rated Group 43 | . . 43 Highest-Rated Ally 31 | . . 31 Total Orders . | . . . Ally Attacks 16 | . . 16 Total Damage 185 | . . 185 Kills 4 | . . 4 Allies Corrupted . | . . . Allies Melted . | . . . Intel | -11 -10 -10 ------- Run | Scr Mat Min Robot Analysis Total . | . . . Derelict Logs Recovered 1 | . . 1 Drone Launches . | . . . Drone Recoveries . | . . . Exploration | -11 -10 -10 ------------- Run | Scr Mat Min Turns Passed 1499 | 28 956 515 Spaces Moved 751 | 11 457 283 Core . | . . . Treads 744 | 4 457 283 Legs 7 | 7 . . Wheels . | . . . Hover . | . . . Flight . | . . . Fastest Speed 120 | 120 160 160 Average Speed 159 | 134 160 160 Slowest Speed 180 | 160 160 180 Overloaded Moves . | . . . Propulsion Burnouts . | . . . Robots Hopped . | . . . Cave-ins Triggered . | . . . Exploration Rate (%) 47 | 2 54 86 Regions Visited 2 Branch Regions 1 Pre-discovered Areas 3 | . 2 1 Known Exits Taken . | . . . Unknown Exits Taken 2 | 1 1 . Scrap Searched . | . . . Spaces Dug 2 | . 1 1 Terrain Destroyed 55 | . 1 54 Melee 2 | . 1 1 Projectile . | . . . AOE 53 | . . 53 Terrain Rammed . | . . . Walls Destroyed . | . . . Machines Disabled . | . . . Actions | -11 -10 -10 --------- Run | Scr Mat Min Total 939 | 16 606 317 Wait 58 | . 57 1 Move 749 | 10 456 283 Hop . | . . . Pick Up 20 | . 19 1 Fast Attach 3 | . 3 . Attach 4 | . 1 3 Detach . | . . . Swap 16 | 2 6 8 Drop 16 | . 15 1 Fire 65 | 4 44 17 Melee 3 | . 1 2 Ram . | . . . Kick . | . . . Crush 5 | . 4 1 Escape Stasis . | . . . Rewire . | . . . Trap . | . . . Miscellaneous . | . . . Route ------- -11/Scrapyard -10/Materials -10/Mines (discovered 2 exits: [*Mat x2]) History --------- Turn | Location | Event 13 | -11/Scrapyard | Discovered new exit (range 2) 29 | -11/Scrapyard | Entered Materials 312 | -10/Materials | Build established: Mutant 313 | -10/Materials | Repaired Lgt. Treads 328 | -10/Materials | Discovered new exit (range 16) 985 | -10/Materials | Entered Mines 1045 | -10/Mines | Discovered new exit (range 8) 1248 | -10/Mines | Discovered new exit (range 10) 1270 | -10/Mines | Learned 4 Materials zone layouts 1468 | -10/Mines | Assembled infested the area 1493 | -10/Mines | Core integrity fell below 50% 1500 | -10/Mines | Core integrity fell below 20% 1500 | -10/Mines | Destroyed by D-53 Grenadier with Mini Grenade Launcher Last Messages --------------- 01482_ Destroyed Asb. Hover Unit. 01482_ as-15815 destroyed. 01482_ U-05 Engineer lays Concrete. 01484_ as-21030 destroyed. 01484_ as-94713 destroyed. 01486_ as-65067 destroyed. 01486_ as-01973 destroyed. 01487_ C-30 ARC bursts open, deploying its payload. 01487_ D-53 Grenadier unfolds itself. 01490_ U-05 Engineer lays Concrete. 01490_ Lgt. Treads destroyed. 01491_ U-05 Engineer lays Concrete. 01491_ Lgt. Treads destroyed. 01492_ The unstable cave ceiling collapses. 01492_ U-05 Engineer lays Concrete. 01498_ Lgt. Assault Rifle destroyed. 01499_ The unstable cave ceiling collapses. 01499_ U-05 Engineer lays Concrete. 01500_ The unstable cave ceiling collapses. 01500_ U-05 Engineer lays Concrete. Map ----- +----------------------------------------------------+ | ????????####??# ### ## ## ##?????????????? | | ???????## ##?# ## #?# ## #####??????????????? | | ???##### #?# ## ### ## #??????????????????? | | ??## ## ### ## ## #??????????????????? | | ??# ######### #??????????????????? | | ??# ## ###???????# #??????????????????? | | ?## ##### #?????????# #????#####?????????? | | ## ##???# #?????????# #?#### ####??????? | | # ##????# #?????????# ### ####???? | | ##?????# #?????????# ## ##??? | | #########%#?????????# ## #??? | | #?# #????####?# #?# #??? | | ##?# ##### #???## ### ### #???? | | ####????????# ##### #" t #???? | | ????????????# ###### " #???? | | ?????????#### ###### #???##% ##???? | | "???""???# ##?# #???## #####????? | | "?? ""???# !!! #?## ##?### ##???????? | | ? ???# ! #??#####?## ##??????? | | """ """ # ! #????????# d ####???? | | """ """ # !!! #????##### d ## ##??? | | """ """ # #???## #### ##?? | | #########???# ##?# #?? | | #??????????## #### #?? | | ????????????# u #?# #?? | | ??????????????# @ ## ##?? | | ####?????????????# ### ##??? | | #?????????????# #?## ##???? | | #######???????## ##??####????? | | ?????### ##??????????? | | #######?????????## # #??????????? | | ##????????????????## #??????????? | | #??????????????????### a #?????????? | | ##???????????????????## % ##?????????? | | #????????????????????# % #?????????? | | ###??????????????????#a #?????????? | | ##???????????????? #?????????? | | ##### ##??????????????## a #?????????? | | ????## ##??????????????## #?????????? | | ?????## #???????????????## ##?????????? | | ??????# #????????????????## #??????????? | | ?????## #?????????????????# ## #??????????? | | ?????# ##?????????????????# #? #??????????? | | ?????# #??????????????????# ??%#??????????? | | ?????## ##??????????????????# ?? #??????????? | | ??????####???????????????????? ?? ??????????? | | ?????????????????????????????? ??? ??????????? | | ?????????????????????????????? ??????????????? | | ?????????????????????????????????????????????? | | ?????????????????????????????????????????????? | +----------------------------------------------------+ Best States ------------- Heat Dissipation 25 Energy Generation 10 Energy Capacity 250 Matter Stores 300 Matter Capacity 300 Sight Range 16 Terrain Scan Density 10 Evasion (%) 40 Recoil Reduction 2 Item Schematics ----------------- None Robot Schematics ------------------ None Fabricated ------------ Nothing Alien Tech Used ----------------- None Achievements -------------- None Challenges ------------ None Game ------ Seed TrackerBehemothArray Manual? 0 Play Time 00:15:35 Cumulative 969.5 hours Start 2020.12.04 @ 23:41:04 End 2020.12.04 @ 23:54:08 Sessions 1 Manual Loads 0 Difficulty Rogue Special Mode Halloween2020/ForbiddenLore Game No. 333 Rogue 333 Adventurer 0 Explorer 0 Win Type - Total 51 Types 11/16/9/3/1/1/8/1/1 Lore% 98 Gallery% 95 Achievement% 84 Wizard Run 0 Options --------- ASCII 0 Keyboard 0 Movement Numpad Keybinds 0 Fullscreen 2 Font 24/Smallcaps Map View 76x50 Tactical HUD 1 Map Filters NONE Filters NONE Steam 1 RUN: c2b3655e-e4d3-49c9-8e60-17b89efd1041